[Event "44th Chess Olympiad Open 2022"]
[Site "Chennai"]
[Date "2022.07.29"]
[Round "1.15"]
[White "Christie, Joshua"]
[Black "Moussard, Jules"]
[Result "0-1"]
[WhiteElo "2272"]
[BlackElo "2672"]
[Annotator "TA"]
[PlyCount "108"]
[EventDate "2022.??.??"]
[TimeControl "60"]

{[%evp 12,108,14,8,11,0,0,0,0,7,4,0,0,0,0,-8,0,-11,0,0,0,0,0,-34,-4,-66,-50,
-59,-72,-92,-89,-44,-107,-100,-118,-143,-160,-120,-132,-149,-134,-141,-142,
-154,-137,-148,-122,-122,-122,-122,-122,-122,-118,-106,-75,-83,-35,-35,-35,-35,
-23,-23,-23,-23,-23,-23,-23,-132,-132,-132,-23,-23,0,-23,-8,-172,-172,-280,
-280,-267,-174,-568,-585,-902,-315,-1564,-1330,-12835,-10712,-10311,-8646,
-5616,-5512,-29975,-29976,-29975,-29975,-29982,-29982]} 1. d4 {[%emt 0:00:20]}
Nf6 {[%emt 0:00:13]} 2. c4 {[%emt 0:00:09]} e6 {[%emt 0:00:06]} 3. g3 {[%emt 0:
00:00]} d5 {[%emt 0:01:19]} 4. Bg2 {[%emt 0:00:20]} Bb4+ {[%emt 0:01:01]} 5.
Bd2 {[%emt 0:00:18]} a5 {[%emt 0:00:44]} 6. Nf3 {[%emt 0:01:34]} O-O {[%emt 0:
00:00]} 7. O-O {[%emt 0:03:01] 7.Qc2 deserves study.} dxc4 {[%emt 0:01:04] E11:
Bogo-Indian.} 8. Qc2 {[%emt 0:00:10]} Bxd2 {[%emt 0:07:09]} 9. Nbxd2 {[%emt 0:
00:00]} b5 $1 {[%emt 0:02:58] The position is equal.} 10. b3 {[%emt 0:10:20]}
cxb3 {[%emt 0:11:58]} 11. axb3 {[%emt 0:00:11]} Bb7 {[%emt 0:11:53]} 12. Rfc1 {
[%emt 0:09:13]} c6 {[%emt 0:01:24] [#]} 13. Ne4 $146 {[%emt 0:18:19]} ({
Predecessor:} 13. e4 h6 14. e5 Nd5 15. Ne4 Ra7 16. Nc5 Nd7 17. Nxb7 Rxb7 18.
Qxc6 Qb8 19. Nd2 Rc7 20. Qd6 Rxc1+ 21. Rxc1 Qxd6 22. exd6 a4 23. bxa4 bxa4 24.
Bxd5 {½-½ (24) Korley,K (2398)-Lee,M (2377) Charlotte 2022}) 13... Nxe4 {
[%emt 0:05:07]} 14. Qxe4 {[%emt 0:00:03]} Na6 {[%emt 0:06:24][%cal Yb8a6,Ya6b4,
Yb4d5]} 15. h4 {[%emt 0:06:22]} h6 {[%emt 0:04:36]} 16. Ne5 {[%emt 0:00:00]}
Nb4 {[%emt 0:01:18]} 17. Rc3 {[%emt 0:06:08]} Qd6 {[%emt 0:14:17]} 18. g4 {
[%emt 0:08:46]} ({White should try} 18. e3 $11) 18... Nd5 $15 {[%emt 0:00:00]}
19. Rg3 {[%emt 0:04:47]} f5 {[%emt 0:00:27]} 20. gxf5 {[%emt 0:00:37]} exf5 {
[%emt 0:00:08]} 21. Qf3 {[%emt 0:03:01]} Rf6 {[%emt 0:00:21] Inhibits Rg6.} 22.
h5 {[%emt 0:01:19]} c5 $36 {[%emt 0:05:29] Black is really pushing.} 23. Nc4 {
[%emt 0:03:25]} bxc4 {[%emt 0:05:28]} 24. bxc4 {[%emt 0:00:03] [#]} cxd4 {
[%emt 0:02:15]} 25. cxd5 {[%emt 0:02:21]} (25. Qb3 Rb8) 25... a4 {[%emt 0:01:
08] Prevents Qb3.} 26. Qa3 {[%emt 0:03:34]} Bxd5 {[%emt 0:01:54]} 27. Qxd6 {
[%emt 0:01:11]} Rxd6 {[%emt 0:00:03]} 28. Rga3 {[%emt 0:00:02]} Bxg2 {[%emt 0:
02:34]} 29. Kxg2 $17 {[%emt 0:00:02] Endgame KRR-KRR} d3 {[%emt 0:00:22]} 30.
exd3 {[%emt 0:01:25]} Rd4 {[%emt 0:00:00]} 31. Kf3 {[%emt 0:00:29]} Kf7 {
[%emt 0:00:26]} 32. Ke3 {[%emt 0:00:37]} Rh4 {[%emt 0:00:04] Black is more
active.} 33. d4 {[%emt 0:00:35]} Rh3+ {[%emt 0:00:00]} (33... Rxh5 $17 {
Hoping for ...Rh3+.} 34. Rxa4 Re8+ 35. Kd3 Rh3+ 36. Kc4 Re7) 34. f3 $1 $15 {
[%emt 0:00:21]} Re8+ {[%emt 0:00:35]} 35. Kf4 {[%emt 0:00:00]} Rxh5 {[%emt 0:
00:21]} 36. Rxa4 {[%emt 0:00:09]} Rh4+ {[%emt 0:00:29]} 37. Kg3 {[%emt 0:00:48]
} g5 {[%emt 0:00:06]} 38. Ra7+ {[%emt 0:00:27]} Re7 {[%emt 0:00:09]} 39. d5 {
[%emt 0:00:30]} (39. Rxe7+ $11 {keeps the balance.} Kxe7 40. Ra6) 39... Rxa7
$17 {[%emt 0:01:18]} 40. Rxa7+ {[%emt 0:00:02] KR-KR} Kg6 {[%emt 0:00:37]} (
40... Kf6 $17 {White must now prevent ...Rd4.} 41. Ra6+ Ke5) 41. Ra6+ $11 {
[%emt 0:30:45]} Kf7 {[%emt 0:30:30]} 42. Kf2 {[%emt 0:00:00]} h5 {[%emt 0:00:
00] Threatens to win with ...Rh2+.} 43. Ke3 $2 {[%emt 0:00:00] Loses the game.}
(43. Ra7+ $11 Kf6 44. Ra6+ Ke5 45. Rg6) 43... Rh3 $19 {[#] And now ...g4 would
win.} 44. Ra7+ {[%emt 0:00:00]} (44. Kd4 $142) 44... Kf6 45. Kd4 {[%emt 0:00:
00]} ({Reject} 45. d6 g4 46. Rh7 Rxf3+ 47. Kd2 Rf4 $19) 45... Rh4+ ({Stronger
than} 45... Rxf3 46. Ra6+ Kf7 47. Ra7+ Kf6 48. Ra6+ Kf7 49. Ke5 $19) 46. Kc5 $2
{[%emt 0:00:00]} (46. Ke3) 46... Rh1 47. Rh7 {[%emt 0:00:00]} Ke5 (47... g4 48.
fxg4 Rc1+ 49. Kd4 hxg4) 48. d6 $2 {[%emt 0:00:00]} (48. Re7+ Kf4 49. d6) 48...
Rc1+ 49. Kb5 {[%emt 0:00:00]} Kxd6 50. Rxh5 {[%emt 0:00:00]} Rg1 51. f4 {
[%emt 0:00:00]} g4 {[%cal Yg5g4,Yg4g3,Yg3g2] ( -> ...g3)} 52. Kc4 {[%emt 0:00:
00]} g3 {Black mates.} 53. Rh6+ {[%emt 0:00:00]} Ke7 54. Kd3 {[%emt 0:00:00]}
g2 {Weighted Error Value: White=0.74/ Black=0.18 (very precise)} 0-1

[Event "44th Chess Olympiad Open 2022"]
[Site "Chennai"]
[Date "2022.07.29"]
[Round "1.15"]
[White "Lorne, Ras Malaku"]
[Black "Lagarde, Maxime"]
[Result "1/2-1/2"]
[WhiteElo "2079"]
[BlackElo "2631"]
[Annotator "TA"]
[PlyCount "69"]
[EventDate "2022.??.??"]
[TimeControl "60"]

{[%evp 14,69,2,0,0,-1,0,-9,0,3,0,-22,-17,-19,-16,-17,-20,-16,-5,-14,-9,-20,-16,
-18,-13,-19,0,0,0,0,0,-15,20,7,3,0,75,60,49,24,46,22,89,91,91,83,103,0,0,0,0,0,
0,0,0,0,0,0]} 1. d4 {[%emt 0:00:06]} e6 {[%emt 0:00:12]} 2. Nf3 {[%emt 0:00:47]
} c5 {[%emt 0:00:08]} 3. c3 {[%emt 0:00:29]} Nf6 {[%emt 0:01:24]} 4. Bg5 {
[%emt 0:04:47]} h6 {[%emt 0:01:54]} 5. Bh4 {[%emt 0:03:04]} b6 {[%emt 0:03:01]}
6. e3 {[%emt 0:05:49]} Bb7 {[%emt 0:00:22]} 7. Nbd2 {[%emt 0:01:22]} Be7 {
[%emt 0:03:11]} 8. h3 {[%emt 0:02:17]} O-O {[%emt 0:02:26] A46:1 d4 Nf6 2 Nf3
e6: Torre, London and Colle Systems.} 9. Bd3 {[%emt 0:02:50]} d5 {[%emt 0:00:
00]} 10. Ne5 {[%emt 0:03:44]} Nfd7 {[%emt 0:04:32]} 11. Bxe7 {[%emt 0:02:44]}
Qxe7 {[%emt 0:00:08]} 12. Ndf3 {[%emt 0:00:34] [#]} Nxe5 $146 {[%emt 0:03:05]}
({Predecessor:} 12... Rd8 13. Qe2 Nc6 14. Nxc6 Bxc6 15. e4 dxe4 16. Bxe4 Bxe4
17. Qxe4 cxd4 18. Nxd4 Nc5 {0-1 (39) Rutz,M (1900)-Eitel,P (2039) Goch 1997})
13. Nxe5 {[%emt 0:00:19]} Nc6 {[%emt 0:00:09]} 14. O-O {[%emt 0:09:34]} Nxe5 {
[%emt 0:01:52]} 15. dxe5 {[%emt 0:00:09]} f5 {[%emt 0:02:46]} 16. exf6 {
[%emt 0:16:36]} Rxf6 {[%emt 0:00:42]} 17. Qe2 {[%emt 0:02:32]} e5 {[%emt 0:00:
00]} 18. Ba6 {[%emt 0:04:40]} Bxa6 {[%emt 0:04:22]} 19. Qxa6 {[%emt 0:05:27]}
Rd8 {[%emt 0:01:35]} 20. Rad1 {[%emt 0:05:21]} Rg6 {[%emt 0:00:42]} 21. Rd2 {
[%emt 0:01:46]} Qg5 {[%emt 0:14:34][%csl Gg6][%cal Rg5g2]} 22. g3 {[%emt 0:00:
00]} d4 {[%emt 0:07:06]} 23. cxd4 {[%emt 0:01:36]} cxd4 {[%emt 0:08:38]} 24.
Qd3 {[%emt 0:07:16]} ({Don't play} 24. Qxa7 dxe3 25. Rxd8+ Qxd8 $15) 24... Rdd6
{[%emt 0:03:17]} (24... Kh7 $11) 25. exd4 {[%emt 0:01:37]} e4 {[%emt 0:02:35]}
26. Qc4+ {[%emt 0:01:26]} Kh7 $1 {[%emt 0:00:08]} 27. Re2 {[%emt 0:03:20]} Qh5
{[%emt 0:05:35]} (27... Qf5 $1 $11 {remains equal.}) 28. Rxe4 $16 {[%emt 0:00:
00]} Qxh3 {[%emt 0:00:17][%cal Yg6g3] ( -> ...Rxg3+!)} 29. Qd3 {[%emt 0:00:38]}
({Inferior is} 29. Re8 Rxg3+ $1 30. fxg3 Qxg3+ 31. Kh1 Qh4+ 32. Kg2 Rg6+ 33.
Kf3 Rg3+ 34. Ke2 Qh5+ 35. Kd2 (35. Kf2 $2 Rf3+ 36. Ke1 Qxe8+ 37. Kd1 Rxf1+ 38.
Qxf1 Qa4+ 39. Ke2 Qc4+ 40. Ke1 Qb4+ 41. Ke2 Qxd4 $19) 35... Qxe8 36. Qc2+ Qg6
37. Qxg6+ Kxg6 $17) 29... Rd5 {[%emt 0:02:29] [#] Hoping for ...Rh5.} 30. Re5 {
[%emt 0:01:37]} (30. Rfe1 $1 $16) 30... Rxd4 $1 $11 {[%emt 0:02:24] The
position is equal.} 31. Qxd4 {[%emt 0:00:21]} Rxg3+ {[%emt 0:00:03]} 32. fxg3 {
[%emt 0:00:08]} Qxg3+ {[%emt 0:00:02]} 33. Kh1 {[%emt 0:00:09] White threatens
Rf2 and mate.} Qh3+ {[%emt 0:00:02]} 34. Kg1 {[%emt 0:00:06] Threatening mate
with Qe4+.} Qg3+ {[%emt 0:00:03]} 35. Kh1 {[%emt 0:00:05] Weighted Error Value:
White=0.13 (very precise) /Black=0.14 (very precise)} 1/2-1/2

[Event "44th Chess Olympiad Open 2022"]
[Site "Chennai"]
[Date "2022.07.29"]
[Round "1.16"]
[White "Sethuraman, S.P..."]
[Black "Rehan, Deng Cypriano"]
[Result "1-0"]
[WhiteElo "2623"]
[BlackElo "2105"]
[Annotator "TA"]
[PlyCount "147"]
[EventDate "2022.??.??"]
[TimeControl "60"]

{[%evp 14,147,71,59,75,70,52,54,65,43,47,45,87,71,95,63,74,61,56,39,38,7,109,
69,87,45,66,42,77,32,79,33,78,15,79,65,115,120,134,132,133,140,140,141,137,129,
141,132,164,148,165,158,161,158,159,156,212,212,212,212,212,212,212,205,212,
212,212,212,212,212,212,212,212,212,212,212,212,212,212,0,212,212,212,198,237,
228,254,254,276,254,368,369,466,452,583,582,588,631,597,557,744,733,738,728,
700,657,973,970,1066,814,1420,1359,1308,1109,1109,1018,1563,931,1420,1363,1269,
1223,3133,2804,29981,29982,29982,29983,29986,29987,29988,29985,29989,29990,
29995,29996]} 1. d4 {[%emt 0:00:37]} d5 {[%emt 0:00:11]} 2. Nf3 {[%emt 0:00:21]
} e6 {[%emt 0:00:21]} 3. c4 {[%emt 0:00:06]} f5 {[%emt 0:00:36]} 4. Nc3 {
[%emt 0:00:42]} Be7 {[%emt 0:01:58]} 5. Bf4 {[%emt 0:00:24]} Nf6 {[%emt 0:00:
00]} 6. e3 {[%emt 0:00:25]} O-O {[%emt 0:02:43]} 7. h3 {[%emt 0:00:18][%cal
Yh2h3,Yh3h4,Yh4h5]} c6 {[%emt 0:02:08]} 8. Qc2 {[%emt 0:01:01]} Ne4 {[%emt 0:
02:08] A84: Dutch Defence: 2 c4 Miscellaneous.} 9. Be2 {[%emt 0:01:23]} Nd7 {
[%emt 0:02:15]} 10. a3 $5 {[%emt 0:00:52] [#] Leaves trodden paths.} Rf7 $146 {
[%emt 0:04:33] White is slightly better.} ({Predecessor:} 10... Ndf6 11. Ne5
Bd7 12. O-O Be8 13. c5 Bh5 14. f3 Nxc3 15. Qxc3 h6 16. g4 fxg4 17. hxg4 {
0-1 (31) Vojtko,M (1996)-Galbavy,D (1902) Slovakia 2015}) 11. h4 {[%emt 0:05:
27]} h6 {[%emt 0:06:57]} 12. h5 {[%emt 0:02:22]} a6 {[%emt 0:09:20]} 13. Rc1 {
[%emt 0:04:25]} Qa5 {[%emt 0:10:27]} 14. O-O {[%emt 0:01:50]} Qd8 {[%emt 0:03:
45]} 15. Rfd1 {[%emt 0:26:45]} Rf8 {[%emt 0:08:39]} 16. Qb3 {[%emt 0:04:27]}
Kh8 {[%emt 0:05:37]} 17. g3 {[%emt 0:06:16]} Bg5 {[%emt 0:00:00]} (17... Qe8 $1
$11) 18. Kg2 {[%emt 0:07:00]} Be7 {[%emt 0:06:21]} 19. Rh1 {[%emt 0:01:53]} Bf6
{[%emt 0:03:41]} 20. Bd3 {[%emt 0:02:48]} Re8 {[%emt 0:00:00]} 21. Ne2 {
[%emt 0:00:22][%cal Yc3e2,Ye2f4,Yf4g6,Yg6e5]} Qe7 {[%emt 0:03:58]} (21... dxc4
$14 {is more appropriate.} 22. Qxc4 (22. Rxc4 b5 $14) 22... e5) 22. Qc2 {
[%emt 0:05:26]} (22. Be5 $16) 22... Qf7 {[%emt 0:00:57]} 23. Bc7 {[%emt 0:00:
49]} ({Better is} 23. cxd5 $16 {Black must now prevent d6.} exd5 24. Bc7) 23...
Nf8 {[%emt 0:01:57]} (23... Ndc5 $11 {keeps the balance.} 24. Be5 (24. dxc5
Qxc7 25. cxd5 cxd5 $11) 24... Nxd3 25. Qxd3 dxc4 26. Qxc4 (26. Rxc4 Bd7 $14)
26... b5) 24. Be5 $16 {[%emt 0:00:13]} Nd7 {[%emt 0:00:52]} (24... dxc4 $14 25.
Qxc4 (25. Bxc4 b5 $16) (25. Bxe4 fxe4 26. Nd2 Bxe5 $16) 25... b5) 25. Nf4 {
[%emt 0:00:32]} Nxe5 {[%emt 0:01:06]} 26. Nxe5 {[%emt 0:00:08] [#] Remove
Defender} Bxe5 {[%emt 0:01:42]} 27. Ng6+ {[%emt 0:00:12]} Kg8 {[%emt 0:00:41]}
28. Nxe5 {[%emt 0:00:07]} Qf6 {[%emt 0:00:00]} 29. Bxe4 {[%emt 0:01:16]} dxe4 {
[%emt 0:01:06]} 30. Qb3 {[%emt 0:00:33]} Kh7 {[%emt 0:01:53]} 31. c5 {[%emt 0:
01:05]} Rd8 {[%emt 0:00:55]} 32. Rc4 {[%emt 0:08:25]} Rd5 {[%emt 0:01:27]} 33.
Rb4 {[%emt 0:00:11]} Qd8 {[%emt 0:00:00]} 34. Nc4 {[%emt 0:06:20] White is
more active.} Rb8 {[%emt 0:01:57]} (34... b5 $16) 35. Nb6 $18 {[%emt 0:00:12]}
Qc7 {[%emt 0:00:42]} 36. Nxd5 {[%emt 0:00:00]} exd5 {[%emt 0:00:19]} 37. Qd1 {
[%emt 0:00:06]} Be6 {[%emt 0:00:22]} 38. Rh4 {[%emt 0:02:32]} Rf8 {[%emt 0:00:
43]} 39. Kf1 {[%emt 0:00:20][%cal Yg2f1,Yf1e1,Ye1d2,Yd2c3]} Bc8 {[%emt 0:00:28]
} 40. Ke1 {[%emt 0:00:19]} Qe7 {[%emt 0:00:36]} 41. Kd2 {[%emt 0:30:30]} Be6 {
[%emt 0:31:45]} 42. Rb6 {[%emt 0:00:11]} Bc8 {[%emt 0:00:00]} 43. Kc3 {[%emt 0:
00:00]} Rf6 {[%emt 0:00:00]} 44. Rh1 {[%emt 0:00:00]} Rf7 {[%emt 0:00:00]} 45.
Qg1 {[%emt 0:00:00]} Kg8 {[%emt 0:00:00]} 46. Qd1 $2 {[%emt 0:00:00]} ({
White should try} 46. b4 $18) 46... Qg5 $2 {[%emt 0:00:00]} (46... Kh7 $1 $11)
47. Rh4 {[%emt 0:00:00]} Kh7 {[%emt 0:00:00]} 48. a4 {[%emt 0:00:00]} Qe7 {
[%emt 0:00:00]} 49. b4 {[%emt 0:00:00][%cal Yb2b4,Yb4b5]} Rf6 {[%emt 0:00:00]}
50. Qb3 {[%emt 0:00:00]} Qd8 51. Kb2 {[%emt 0:00:00]} Rf8 (51... Qc7 {is a
better defense.} 52. b5 axb5 53. axb5 Bd7) 52. b5 {[%emt 0:00:00]} f4 53. Rxf4
{[%emt 0:00:00]} Rxf4 54. exf4 {[%emt 0:00:00]} axb5 55. axb5 {[%emt 0:00:00]
Endgame KQR-KQB} Qf6 56. Qe3 {[%emt 0:00:00]} Qf7 57. bxc6 {[%emt 0:00:00]}
bxc6 58. Rxc6 {[%emt 0:00:00]} Bg4 59. Rb6 {[%emt 0:00:00]} Qxh5 60. c6 {
[%emt 0:00:00][%cal Yc5c6,Yc6c7]} Qh1 61. Rb4 {[%emt 0:00:00]} Be6 62. Qe2 {
[%emt 0:00:00]} Qh3 63. c7 {[%emt 0:00:00]} Qf5 64. Qc2 {[%emt 0:00:00]
Threatens to win with Rb8.} Qf6 65. Qc3 {[%emt 0:00:00] Threatening mate with
Rb6.} Qf5 66. Rb6 {[%emt 0:00:00][%cal Yb6e6] White wants to mate with Rxe6!}
Bc8 67. Rd6 {[%emt 0:00:00]} g5 68. Qc6 {[%emt 0:00:00][%csl Yd5,Yh6] White
threatens Rf6 and mate.} gxf4 69. Rxh6+ {[%emt 0:00:00] White mates.} Kg7 70.
gxf4 {[%emt 0:00:00]} Bd7 71. Qd6 {[%emt 0:00:00]} Bc8 72. Kc3 {[%emt 0:00:00]}
Bd7 {[#]} 73. Rf6 $3 {[%emt 0:00:00]} Qh3+ (73... Qxf6 74. Qxd7+) 74. Kb4 {
[%emt 0:00:00] Weighted Error Value: White=0.17 (very precise) /Black=0.35} 1-0

[Event "44th Chess Olympiad Open 2022"]
[Site "Chennai"]
[Date "2022.07.29"]
[Round "1.16"]
[White "Karthikeyan, Murali"]
[Black "Gong Thon Gong"]
[Result "1-0"]
[WhiteElo "2613"]
[BlackElo "2176"]
[Annotator "ChessBase"]
[PlyCount "77"]
[EventDate "2022.??.??"]
[TimeControl "60"]

1. e4 {[%emt 0:00:06]} c5 {[%emt 0:00:49]} 2. Nf3 {[%emt 0:00:24]} d6 {[%emt 0:
00:00]} 3. Bb5+ {[%emt 0:01:59]} Bd7 {[%emt 0:02:49]} 4. Bxd7+ {[%emt 0:00:48]}
Qxd7 {[%emt 0:00:45]} 5. c4 {[%emt 0:00:37]} Nf6 {[%emt 0:00:14]} 6. Nc3 {
[%emt 0:00:15]} Nc6 {[%emt 0:00:14]} 7. d4 {[%emt 0:02:06]} cxd4 {[%emt 0:00:
00]} 8. Nxd4 {[%emt 0:00:06]} g6 {[%emt 0:00:31]} 9. f3 {[%emt 0:01:22]} Bg7 {
[%emt 0:00:10]} 10. Be3 {[%emt 0:00:08]} O-O {[%emt 0:00:51]} 11. O-O {[%emt 0:
00:00]} Nxd4 {[%emt 0:06:53]} 12. Bxd4 {[%emt 0:00:52]} Qc6 {[%emt 0:01:21]}
13. b3 {[%emt 0:07:07]} Nd7 {[%emt 0:00:45]} 14. Bxg7 {[%emt 0:04:41]} Kxg7 {
[%emt 0:00:06]} 15. Kh1 {[%emt 0:00:13]} a6 {[%emt 0:01:11]} 16. Rc1 {[%emt 0:
00:00]} Nf6 {[%emt 0:00:52]} 17. Qe2 {[%emt 0:05:36]} Rac8 {[%emt 0:00:27]} 18.
Rfe1 {[%emt 0:05:01]} Qc5 {[%emt 0:03:58]} 19. f4 {[%emt 0:06:04]} Qa5 {
[%emt 0:06:23]} 20. e5 {[%emt 0:12:12]} dxe5 {[%emt 0:02:41]} 21. fxe5 {
[%emt 0:00:16]} Ne8 {[%emt 0:00:48]} 22. Qb2 {[%emt 0:03:38]} Nc7 {[%emt 0:00:
00]} 23. e6 {[%emt 0:08:01]} f6 {[%emt 0:03:06]} 24. Rcd1 {[%emt 0:02:20]} Rcd8
{[%emt 0:11:38]} 25. Rd7 {[%emt 0:01:46]} Rfe8 {[%emt 0:01:35]} 26. b4 {
[%emt 0:04:02]} Qb6 {[%emt 0:00:10]} 27. h3 {[%emt 0:16:45]} Qc6 {[%emt 0:00:
00]} 28. b5 {[%emt 0:01:19]} Qxc4 {[%emt 0:01:48]} 29. Ne4 {[%emt 0:01:04]} Kg8
{[%emt 0:00:54]} 30. bxa6 {[%emt 0:10:54]} bxa6 {[%emt 0:01:58]} 31. Qb7 {
[%emt 0:00:40]} Nd5 {[%emt 0:02:49]} 32. Nd6 {[%emt 0:00:59]} Qc3 {[%emt 0:00:
00]} 33. Rd1 {[%emt 0:01:43]} Ne3 {[%emt 0:00:13]} 34. Rxd8 {[%emt 0:00:34]}
Rxd8 {[%emt 0:00:25]} 35. Qxe7 {[%emt 0:00:10]} Rf8 {[%emt 0:00:51]} 36. Rg1 {
[%emt 0:01:30]} Qc6 {[%emt 0:01:53]} 37. Nf7 {[%emt 0:00:38]} Nf5 {[%emt 0:00:
00]} 38. Qxf6 {[%emt 0:00:13]} Qxe6 {[%emt 0:02:41]} 39. Nh6+ {[%emt 0:00:27]}
1-0

[Event "44th Chess Olympiad Open 2022"]
[Site "Chennai"]
[Date "2022.07.29"]
[Round "1.16"]
[White "Peter Majur Manyang"]
[Black "Puranik, Abhimanyu"]
[Result "0-1"]
[WhiteElo "2095"]
[BlackElo "2612"]
[Annotator "TA"]
[PlyCount "96"]
[EventDate "2022.??.??"]
[TimeControl "60"]

{[%evp 11,96,0,16,9,12,10,18,12,22,0,18,12,7,0,0,0,12,6,7,0,16,16,16,0,10,0,0,
0,0,0,0,-6,-9,-8,-7,-37,-30,-37,-41,-42,-52,-68,-42,-51,-15,-18,-15,-16,0,0,0,
0,0,0,0,-8,-8,-20,-8,-8,-8,-95,-99,-160,-144,-160,-165,-208,-210,-215,-172,
-204,-206,-199,-199,-774,-763,-944,-558,-945,-843,-803,-802,-795,-795,-754,
-733]} 1. e4 {[%emt 0:00:11]} c5 {[%emt 0:00:27]} 2. Nc3 {[%emt 0:03:05]} Nc6 {
[%emt 0:00:52]} 3. g3 {[%emt 0:00:27]} g6 {[%emt 0:00:31]} 4. Bg2 {[%emt 0:00:
00]} Bg7 {[%emt 0:00:04]} 5. Nge2 {[%emt 0:00:17]} d6 {[%emt 0:00:35]} 6. O-O {
[%emt 0:00:05]} Nf6 {[%emt 0:00:53]} 7. d4 {[%emt 0:01:13] B24: Closed
Sicilian: 3 g3 sidelines.} cxd4 {[%emt 0:00:16]} 8. Nxd4 {[%emt 0:00:01]} Bg4 {
[%emt 0:00:45]} 9. Nxc6 {[%emt 0:04:52] The position is equal.} bxc6 {[%emt 0:
00:00]} 10. Qd3 {[%emt 0:00:01][%cal Ye4e5] [#]} Qc7 $146 {[%emt 0:05:22]} ({
Predecessor:} 10... Qc8 11. f4 O-O 12. Be3 Bh3 13. f5 Bxg2 14. Kxg2 Rb8 15. b3
Ng4 16. Bd4 Ne5 17. Bxe5 Bxe5 {0-1 (58) Ehs,D (2070)-Hebesberger,T (2244)
Playchess.com INT 2020}) 11. Be3 {[%emt 0:12:25]} O-O {[%emt 0:01:20]} 12. f4 {
[%emt 0:00:24]} Bc8 {[%emt 0:01:46]} 13. h3 {[%emt 0:02:02] Inhibits Ng4.} Rb8
{[%emt 0:03:42]} 14. Rab1 {[%emt 0:05:48]} Qa5 {[%emt 0:10:31] And now ...Ba6
would win.} 15. Rfd1 {[%emt 0:02:32]} Be6 {[%emt 0:09:31]} 16. b3 {[%emt 0:00:
00]} c5 {[%emt 0:08:25][%cal Yc6c5,Yc5c4]} 17. Na4 {[%emt 0:06:02]} c4 {
[%emt 0:04:14]} 18. Qe2 {[%emt 0:00:03]} Rfc8 {[%emt 0:01:43]} 19. g4 {[%emt 0:
06:53]} Bd7 {[%emt 0:01:58]} 20. e5 {[%emt 0:06:18]} Ne8 {[%emt 0:00:00]} 21.
Nb2 {[%emt 0:03:26]} cxb3 {[%emt 0:00:41]} 22. axb3 {[%emt 0:00:17] aiming for
Nc4.} Qc7 {[%emt 0:00:13]} 23. Nc4 {[%emt 0:01:57]} Bb5 {[%emt 0:00:00][%cal
Rd6e5]} 24. Qf2 {[%emt 0:05:04] Strongly threatening exd6.} Bxc4 {[%emt 0:01:
51]} 25. bxc4 {[%emt 0:00:04]} Rxb1 {[%emt 0:00:55]} 26. Rxb1 {[%emt 0:00:02]}
Qxc4 {[%emt 0:02:01]} 27. Rb7 {[%emt 0:01:39]} Nc7 {[%emt 0:00:00][%cal Ye8c7,
Yc7e6,Ye6f4,Yf4e2]} 28. exd6 {[%emt 0:01:47]} (28. Bxa7 dxe5 29. Qc5 Qxc5+ 30.
Bxc5 Ne6 31. Bxe7 exf4 $17) 28... exd6 {[%emt 0:00:03] Threatening ...Nd5.} 29.
Qd2 {[%emt 0:00:00] Inhibits Nd5.} ({Reject} 29. Rxa7 Nd5 30. Bxd5 Qxd5 $17)
29... a5 {[%emt 0:09:54]} 30. Qxd6 {[%emt 0:03:41]} a4 {[%emt 0:11:16]} 31. Qd7
{[%emt 0:05:29]} Qe6 {[%emt 0:00:16]} 32. Qxe6 {[%emt 0:01:22]} Nxe6 {[%emt 0:
00:08]} 33. Ra7 {[%emt 0:00:26] [#]} Nxf4 $1 {[%emt 0:10:30]} 34. Be4 {[%emt 0:
02:09]} (34. c4 Re8) 34... Ne2+ {[%emt 0:00:00]} (34... Nxh3+ $2 35. Kh2 $18)
35. Kf2 {[%emt 0:03:20]} Nc3 {[%emt 0:00:03]} 36. Bf3 {[%emt 0:00:32]} (36. Kf3
$11 {keeps the balance.}) 36... Bf8 $17 {[%emt 0:00:30] Hoping for ...a3.} 37.
Ra6 {[%emt 0:00:23]} ({White should play} 37. Bb7 Rc7 38. Bf4) 37... a3 {
[%emt 0:00:43]} 38. Bd4 {[%emt 0:00:48]} Nb5 {[%emt 0:01:09][%csl Yc2,Yd4]} 39.
Bf6 {[%emt 0:02:59]} Bg7 {[%emt 0:01:47]} 40. g5 {[%emt 0:07:29][%cal Yc2c4]} (
{Not} 40. c4 $2 Nc7 41. Rxa3 Bxf6 $19) 40... h6 {[%emt 0:01:03]} 41. c4 {
[%emt 0:30:02]} Rxc4 {[%emt 0:32:32]} 42. Be2 {[%emt 0:05:53]} Rc2 {[%emt 0:00:
14]} 43. Ke1 $2 {[%emt 0:00:00]} (43. Ke3 Nc7 44. Rxa3) 43... Bxf6 $19 {
[%emt 0:00:00] Black is clearly winning.} 44. gxf6 {[%emt 0:00:00]} a2 {
[%emt 0:00:00]} 45. Bd1 {[%emt 0:00:00]} Rc1 {[%emt 0:00:00]} 46. Ra8+ {
[%emt 0:00:00]} Kh7 {[%emt 0:00:00] ( -> ...Nc3)} 47. Rxa2 {[%emt 0:00:00] [#]}
Rxd1+ $1 {[%emt 0:00:00]} 48. Kf2 {[%emt 0:00:00]} Rd6 {[%emt 0:00:00]
Weighted Error Value: White=0.42/Black=0.15 (very precise)} 0-1